[Event "44th Chess Olympiad Women 2022"]
[Site "Chennai"]
[Date "2022.08.02"]
[Round "5.49"]
[White "Eman Sawan"]
[Black "Herrera, Marjorie"]
[Result "1-0"]
[ECO "B51"]
[WhiteElo "1847"]
[BlackElo "1760"]
[Annotator "NA RC COMBH"]
[PlyCount "113"]
[EventDate "2022.07.29"]
[EventType "team-tourn"]
[EventCountry "IND"]
[SourceTitle "playchess.com"]
[Source "ChessBase"]
[SourceQuality "1"]
[WhiteTeam "Palestine"]
[BlackTeam "El Salvador"]
[WhiteTeamCountry "PLE"]
[BlackTeamCountry "ESA"]
[TimeControl "40/5400+30:1800+30"]

1. e4 {[%emt 0:00:03]} c5 {[%emt 0:00:18]} 2. Nf3 {[%emt 0:00:12]} d6 {[%emt 0:00:07]} 3. Bb5+ {[%emt 0:00:10]} Nd7 {[%emt 0:00:25]} 4. d4 {[%emt 0:00:21]} cxd4 {[%emt 0:00:21]} 5. Qxd4 {[%emt 0:00:12]} a6 {[%emt 0:01:05]} 6. Bxd7+ {[%emt 0:00:13]} Bxd7 {[%emt 0:00:13]} 7. c4 {[%emt 0:00:23]} e5 {[%emt 0:01:00]} 8. Qd3 {[%emt 0:00:19]} b5 {[%emt 0:01:05]} 9. Na3 {[%emt 0:01:54]} Qb8 {[%emt 0:04:20]} 10. O-O {[%emt 0:03:58]} h6 {[%emt 0:01:40]} 11. Rd1 {[%emt 0:02:04]} Nf6 {[%emt 0:00:21]} 12. b3 {[%emt 0:04:07]} Bc6 {[%emt 0:12:15]} 13. Nd2 {[%emt 0:03:13]} Be7 {[%emt 0:02:13]} 14. f3 {[%emt 0:05:03]} Qb6+ {[%emt 0:11:45]} 15. Kh1 {[%emt 0:00:48]} Nh5 {[%emt 0:01:15]} 16. Nf1 {[%emt 0:04:29]} O-O {[%emt 0:02:19]} 17. Nc2 {[%emt 0:04:34]} b4 {[%emt 0:06:28]} 18. g3 {[%emt 0:08:06]} f5 {[%emt 0:12:30]} 19. Nfe3 {[%emt 0:17:10]} fxe4 {[%emt 0:02:42]} 20. fxe4 {[%emt 0:00:23]} Nf6 {[%emt 0:06:22]} 21. Nd5 {[%emt 0:00:42]} Bxd5 {[%emt 0:03:38]} 22. cxd5 {[%emt 0:01:47]} Qf2 {[%emt 0:10:09]} 23. Be3 {[%emt 0:16:35]} Qf3+ {[%emt 0:03:21]} 24. Kg1 {[%emt 0:00:06]} Nxe4 {[%emt 0:02:44]} 25. Rf1 {[%emt 0:09:21]} Qg4 {[%emt 0:01:36]} 26. Bb6 {[%emt 0:02:47]} Ng5 {[%emt 0:01:57]} 27. Ne3 {[%emt 0:01:52]} Nf3+ {[%emt 0:06:03]} 28. Kg2 {[%emt 0:01:19]} Nh4+ {[%emt 0:01:15]} 29. Kh1 {[%emt 0:02:00]} Qg6 {[%emt 0:00:57]} 30. Qxg6 {[%emt 0:02:06]} Nxg6 {[%emt 0:00:02]} 31. Nc4 {[%emt 0:00:17]} Rac8 {[%emt 0:01:11]} 32. Ba5 {[%emt 0:00:44]} Rc5 {[%emt 0:03:16]} 33. Rxf8+ {[%emt 0:01:40]} Bxf8 {[%emt 0:00:34]} 34. Rd1 {[%emt 0:01:18]} Ne7 {[%emt 0:00:15]} 35. Bxb4 {[%emt 0:00:36]} Rxd5 {[%emt 0:00:06]} 36. Rxd5 {[%emt 0:00:10]} Nxd5 {[%emt 0:00:02]} 37. Bxd6 {[%emt 0:00:14]} Bxd6 {[%emt 0:00:58]} 38. Nxd6 {[%emt 0:00:04]} Nc3 {[%emt 0:00:22]} 39. a3 {[%emt 0:01:13]} Kf8 {[%emt 0:00:32]} 40. Kg2 {[%emt 0:00:45]} Ke7 {[%emt 0:00:18]} 41. Nc4 {[%emt 0:30:46]} Ke6 {[%emt 0:31:52]} 42. Kf3 {[%emt 0:01:22]} Kd5 {[%emt 0:00:00]} 43. Ke3 {[%emt 0:00:00]} Nd1+ {[%emt 0:00:00]} 44. Ke2 {[%emt 0:00:00]} Nc3+ {[%emt 0:00:00]} 45. Kd3 {[%emt 0:00:00]} Nb5 {[%emt 0:00:00]} 46. Ne3+ {[%emt 0:00:00]} Ke6 {[%emt 0:00:00]} 47. a4 {[%emt 0:00:00]} Nd6 {[%emt 0:00:00]} 48. b4 {[%emt 0:00:00]} g5 {[%emt 0:00:00]} 49. g4 {[%emt 0:00:00]} Kf6 {[%emt 0:00:00]} 50. Nd5+ {[%emt 0:00:00]} Kf7 {[%emt 0:00:00]} 51. Nc7 {[%emt 0:00:00]} a5 {[%emt 0:00:00]} 52. bxa5 {[%emt 0:00:00]} Nb7 {[%emt 0:00:00]} 53. a6 {[%emt 0:00:00]} Nc5+ {[%emt 0:00:00]} 54. Ke3 {[%emt 0:01:25]} Nxa4 {[%emt 0:00:00]} 55. a7 {[%emt 0:00:08]} Nb6 {[%emt 0:00:00]} 56. a8=Q {[%emt 0:00:11]} Nxa8 {[%emt 0:00:00]} 57. Nxa8 {[%emt 0:00:11]} 1-0

[Event "44th Chess Olympiad Women 2022"]
[Site "Chennai"]
[Date "2022.08.02"]
[Round "5.49"]
[White "Zavala Galindo, Alejandra Beatriz"]
[Black "Heba, Assi"]
[Result "1-0"]
[ECO "B51"]
[WhiteElo "1748"]
[BlackElo "1449"]
[Annotator "NA RC COMBH"]
[PlyCount "53"]
[EventDate "2022.07.29"]
[EventType "team-tourn"]
[EventCountry "IND"]
[SourceTitle "playchess.com"]
[Source "ChessBase"]
[SourceQuality "1"]
[WhiteTeam "El Salvador"]
[BlackTeam "Palestine"]
[WhiteTeamCountry "ESA"]
[BlackTeamCountry "PLE"]
[TimeControl "40/5400+30:1800+30"]

1. e4 {[%emt 0:00:37]} c5 {[%emt 0:01:26]} 2. Nf3 {[%emt 0:00:16]} d6 {[%emt 0:00:02]} 3. Bb5+ {[%emt 0:00:15]} Nd7 {[%emt 0:00:12]} 4. d4 {[%emt 0:01:53]} cxd4 {[%emt 0:00:08]} 5. Qxd4 {[%emt 0:00:09]} a6 {[%emt 0:01:32]} 6. Be2 {[%emt 0:02:27]} Qc7 {[%emt 0:01:02]} 7. O-O {[%emt 0:07:25]} Ngf6 {[%emt 0:02:05]} 8. c4 {[%emt 0:00:55]} e6 {[%emt 0:01:22]} 9. Nc3 {[%emt 0:00:22]} b6 {[%emt 0:00:23]} 10. h3 {[%emt 0:00:51]} Bb7 {[%emt 0:00:31]} 11. Be3 {[%emt 0:07:08]} Rc8 {[%emt 0:01:53]} 12. Rac1 {[%emt 0:00:49]} Nc5 {[%emt 0:00:36]} 13. b4 {[%emt 0:06:42]} e5 {[%emt 0:01:45]} 14. Qd1 {[%emt 0:03:04]} Ncxe4 {[%emt 0:01:23]} 15. Nd5 {[%emt 0:00:30]} Nxd5 {[%emt 0:00:30]} 16. cxd5 {[%emt 0:00:30]} Qd8 {[%emt 0:02:36]} 17. Rxc8 {[%emt 0:07:08]} Bxc8 {[%emt 0:00:39]} 18. Qc2 {[%emt 0:00:49]} f5 {[%emt 0:06:39]} 19. Bxb6 {[%emt 0:03:36]} Qd7 {[%emt 0:05:03]} 20. Rc1 {[%emt 0:03:01]} Bb7 {[%emt 0:00:41]} 21. Qc7 {[%emt 0:01:04]} Qxc7 {[%emt 0:04:27]} 22. Rxc7 {[%emt 0:00:08]} Bxd5 {[%emt 0:00:50]} 23. Bxa6 {[%emt 0:00:28]} Be6 {[%emt 0:15:10]} 24. Bb5+ {[%emt 0:00:28]} Kd8 {[%emt 0:00:24]} 25. Ra7+ {[%emt 0:08:42]} Kc8 {[%emt 0:00:30]} 26. Bc6 {[%emt 0:00:16]} Nc3 {[%emt 0:02:42]} 27. Ra8# {[%emt 0:00:24]} 1-0

[Event "44th Chess Olympiad Women 2022"]
[Site "Chennai"]
[Date "2022.08.02"]
[Round "5.49"]
[White "Palacios, Celina"]
[Black "Seder, Randa"]
[Result "1-0"]
[ECO "C50"]
[WhiteElo "1715"]
[BlackElo "1442"]
[Annotator "NA RC COMBH"]
[PlyCount "85"]
[EventDate "2022.07.29"]
[EventType "team-tourn"]
[EventCountry "IND"]
[SourceTitle "playchess.com"]
[Source "ChessBase"]
[SourceQuality "1"]
[WhiteTeam "El Salvador"]
[BlackTeam "Palestine"]
[WhiteTeamCountry "ESA"]
[BlackTeamCountry "PLE"]
[TimeControl "40/5400+30:1800+30"]

1. e4 {[%emt 0:00:40]} e5 {[%emt 0:00:23]} 2. Nf3 {[%emt 0:00:21]} Nc6 {[%emt 0:00:20]} 3. Bc4 {[%emt 0:00:26]} f5 {[%emt 0:00:27]} 4. d4 {[%emt 0:07:01]} exd4 {[%emt 0:01:02]} 5. Nxd4 {[%emt 0:06:21]} Qh4 {[%emt 0:05:45]} 6. Nxf5 {[%emt 0:05:46]} Qxe4+ {[%emt 0:01:04]} 7. Ne3 {[%emt 0:02:15]} Nf6 {[%emt 0:03:36]} 8. O-O {[%emt 0:03:23]} Be7 {[%emt 0:06:51]} 9. Nc3 {[%emt 0:03:30]} Qg6 {[%emt 0:02:58]} 10. Ned5 {[%emt 0:10:38]} Bd6 {[%emt 0:02:52]} 11. Re1+ {[%emt 0:04:32]} Kd8 {[%emt 0:09:03]} 12. Bf4 {[%emt 0:07:02]} Nxd5 {[%emt 0:10:53]} 13. Nxd5 {[%emt 0:02:58]} Rf8 {[%emt 0:01:31]} 14. Qd2 {[%emt 0:03:39]} h6 {[%emt 0:07:20]} 15. Bg3 {[%emt 0:06:47]} Bxg3 {[%emt 0:01:34]} 16. hxg3 {[%emt 0:02:16]} d6 {[%emt 0:00:52]} 17. Nf4 {[%emt 0:00:31]} Qf6 {[%emt 0:01:49]} 18. c3 {[%emt 0:01:41]} Ne5 {[%emt 0:02:54]} 19. Bb3 {[%emt 0:01:22]} g5 {[%emt 0:01:20]} 20. Nd5 {[%emt 0:02:30]} Qf5 {[%emt 0:00:52]} 21. Rad1 {[%emt 0:04:17]} Qg6 {[%emt 0:13:10]} 22. Rxe5 {[%emt 0:03:04]} dxe5 {[%emt 0:02:35]} 23. Nb6+ {[%emt 0:02:22]} Qd6 {[%emt 0:05:42]} 24. Nxa8 {[%emt 0:00:29]} Rf6 {[%emt 0:02:50]} 25. Qe2 {[%emt 0:01:19]} Qxd1+ {[%emt 0:01:11]} 26. Bxd1 {[%emt 0:00:52]} Re6 {[%emt 0:00:43]} 27. Qe3 {[%emt 0:01:52]} b6 {[%emt 0:00:21]} 28. Bg4 {[%emt 0:01:17]} Rd6 {[%emt 0:00:28]} 29. Bxc8 {[%emt 0:00:45]} Kxc8 {[%emt 0:00:14]} 30. Qxe5 {[%emt 0:00:15]} Kb7 {[%emt 0:00:23]} 31. Nxc7 {[%emt 0:01:47]} Kxc7 {[%emt 0:00:18]} 32. f4 {[%emt 0:00:41]} gxf4 {[%emt 0:00:30]} 33. gxf4 {[%emt 0:00:06]} Kd7 {[%emt 0:00:18]} 34. f5 {[%emt 0:00:43]} Rd1+ {[%emt 0:00:18]} 35. Kh2 {[%emt 0:00:15]} Rd6 {[%emt 0:00:27]} 36. Qg7+ {[%emt 0:00:31]} Kc6 {[%emt 0:00:26]} 37. f6 {[%emt 0:00:29]} Rxf6 {[%emt 0:00:17]} 38. Qxf6+ {[%emt 0:00:07]} Kb5 {[%emt 0:00:11]} 39. b3 {[%emt 0:00:24]} h5 {[%emt 0:00:14]} 40. a4+ {[%emt 0:00:19]} Ka5 {[%emt 0:00:16]} 41. Qc6 {[%emt 0:30:58]} Ka6 {[%emt 0:30:30]} 42. b4 {[%emt 0:00:51]} h4 {[%emt 0:00:12]} 43. Qc8# {[%emt 0:00:08]} 1-0

[Event "44th Chess Olympiad Women 2022"]
[Site "Chennai"]
[Date "2022.08.02"]
[Round "5.50"]
[White "Quevedo, Andreina"]
[Black "Tsai, Sophie Yi-Hsuan"]
[Result "1-0"]
[ECO "B27"]
[WhiteElo "1841"]
[BlackElo "1131"]
[Annotator "NA RC COMBH"]
[PlyCount "81"]
[EventDate "2022.07.29"]
[EventType "team-tourn"]
[EventCountry "IND"]
[SourceTitle "playchess.com"]
[Source "ChessBase"]
[SourceQuality "1"]
[WhiteTeam "Uruguay"]
[BlackTeam "Taiwan"]
[WhiteTeamCountry "URU"]
[BlackTeamCountry "TPE"]
[TimeControl "40/5400+30:1800+30"]

1. e4 {[%emt 0:00:07]} c5 {[%emt 0:00:03]} 2. Nf3 {[%emt 0:00:12]} g6 {[%emt 0:00:03]} 3. d4 {[%emt 0:00:08]} cxd4 {[%emt 0:00:04]} 4. Qxd4 {[%emt 0:00:12]} Nf6 {[%emt 0:00:04]} 5. Nc3 {[%emt 0:00:27]} Nc6 {[%emt 0:00:05]} 6. Qa4 {[%emt 0:00:20]} Bg7 {[%emt 0:05:40]} 7. e5 {[%emt 0:01:24]} Ng8 {[%emt 0:00:58]} 8. Bf4 {[%emt 0:00:24]} Nh6 {[%emt 0:03:36]} 9. O-O-O {[%emt 0:02:39]} Ng4 {[%emt 0:12:41]} 10. Bg3 {[%emt 0:29:52]} Ngxe5 {[%emt 0:04:30]} 11. Nxe5 {[%emt 0:00:46]} Bxe5 {[%emt 0:01:41]} 12. Bxe5 {[%emt 0:03:26]} Nxe5 {[%emt 0:00:02]} 13. Qd4 {[%emt 0:13:32]} f6 {[%emt 0:00:43]} 14. f4 {[%emt 0:00:58]} Nc6 {[%emt 0:05:02]} 15. Qe3 {[%emt 0:11:53]} Qb6 {[%emt 0:20:42]} 16. Qf3 {[%emt 0:04:10]} O-O {[%emt 0:12:34]} 17. h4 {[%emt 0:04:34]} Nd4 {[%emt 0:04:06]} 18. Qd5+ {[%emt 0:10:49]} Ne6 {[%emt 0:00:07]} 19. f5 {[%emt 0:02:35]} Qe3+ {[%emt 0:01:14]} 20. Kb1 {[%emt 0:00:03]} gxf5 {[%emt 0:00:29]} 21. Qxf5 {[%emt 0:02:00]} Ng7 {[%emt 0:01:14]} 22. Bc4+ {[%emt 0:03:05]} e6 {[%emt 0:00:53]} 23. Qf1 {[%emt 0:01:55]} d5 {[%emt 0:01:30]} 24. Bxd5 {[%emt 0:01:24]} exd5 {[%emt 0:00:19]} 25. Nxd5 {[%emt 0:00:11]} Qe5 {[%emt 0:00:54]} 26. Qf3 {[%emt 0:01:06]} Be6 {[%emt 0:03:02]} 27. Nc3 {[%emt 0:03:18]} h5 {[%emt 0:01:47]} 28. Qf2 {[%emt 0:01:44]} b5 {[%emt 0:01:12]} 29. Rhe1 {[%emt 0:00:24]} Qc7 {[%emt 0:01:22]} 30. Ne4 {[%emt 0:01:08]} Rac8 {[%emt 0:05:24]} 31. Rd2 {[%emt 0:00:30]} a5 {[%emt 0:01:54]} 32. Nxf6+ {[%emt 0:00:26]} Kh8 {[%emt 0:00:11]} 33. Qd4 {[%emt 0:00:44]} Rfd8 {[%emt 0:00:58]} 34. Qe3 {[%emt 0:00:28]} Nf5 {[%emt 0:05:01]} 35. Rxd8+ {[%emt 0:00:02]} Qxd8 {[%emt 0:02:18]} 36. Qxe6 {[%emt 0:00:03]} Ng7 {[%emt 0:00:10]} 37. Qe5 {[%emt 0:00:37]} Qd2 {[%emt 0:03:35]} 38. Qe4 {[%emt 0:00:46]} Nf5 {[%emt 0:01:42]} 39. Nxh5 {[%emt 0:00:47]} Rc5 {[%emt 0:01:38]} 40. Qe8+ {[%emt 0:00:21]} Kh7 {[%emt 0:00:02]} 41. Qf7+ {[%emt 0:02:35]} 1-0

[Event "44th Chess Olympiad Women 2022"]
[Site "Chennai"]
[Date "2022.08.02"]
[Round "5.50"]
[White "Shih, Ching-An"]
[Black "Silvera, Pilar"]
[Result "1-0"]
[ECO "A90"]
[WhiteElo "1582"]
[BlackElo "1436"]
[Annotator "NA RC COMBH"]
[PlyCount "64"]
[EventDate "2022.07.29"]
[EventType "team-tourn"]
[EventCountry "IND"]
[SourceTitle "playchess.com"]
[Source "ChessBase"]
[SourceQuality "1"]
[WhiteTeam "Taiwan"]
[BlackTeam "Uruguay"]
[WhiteTeamCountry "TPE"]
[BlackTeamCountry "URU"]
[TimeControl "40/5400+30:1800+30"]

1. d4 {[%emt 0:00:06]} f5 {[%emt 0:00:10]} 2. g3 {[%emt 0:00:11]} Nf6 {[%emt 0:00:12]} 3. Bg2 {[%emt 0:00:06]} e6 {[%emt 0:00:10]} 4. Nf3 {[%emt 0:00:20]} d5 {[%emt 0:00:12]} 5. O-O {[%emt 0:02:32]} Bd6 {[%emt 0:00:20]} 6. c4 {[%emt 0:03:06]} c6 {[%emt 0:00:13]} 7. cxd5 {[%emt 0:07:13]} exd5 {[%emt 0:00:21]} 8. Nc3 {[%emt 0:00:30]} O-O {[%emt 0:00:24]} 9. Ne5 {[%emt 0:02:02]} Nbd7 {[%emt 0:10:27]} 10. Bf4 {[%emt 0:02:17]} Qe7 {[%emt 0:00:35]} 11. Nd3 {[%emt 0:01:34]} Ne4 {[%emt 0:09:39]} 12. Rc1 {[%emt 0:06:03]} g5 {[%emt 0:16:38]} 13. Bxd6 {[%emt 0:05:57]} Qxd6 {[%emt 0:00:09]} 14. Nxe4 {[%emt 0:00:16]} fxe4 {[%emt 0:00:31]} 15. Nc5 {[%emt 0:00:23]} Qh6 {[%emt 0:05:43]} 16. Qb3 {[%emt 0:02:01]} Nf6 {[%emt 0:27:22]} 17. Nxe4 {[%emt 0:03:31]} Bh3 {[%emt 0:04:09]} 18. Nxf6+ {[%emt 0:01:42]} Rxf6 {[%emt 0:00:09]} 19. Qxb7 {[%emt 0:00:15]} Raf8 {[%emt 0:00:33]} 20. Bxh3 {[%emt 0:11:26]} Qxh3 {[%emt 0:00:31]} 21. Rxc6 {[%emt 0:00:05]} Rf5 {[%emt 0:14:18]} 22. Rc8 {[%emt 0:08:00]} h5 {[%emt 0:03:07]} 23. Rxf8+ {[%emt 0:00:09]} Kxf8 {[%emt 0:00:28]} 24. Qb8+ {[%emt 0:00:18]} Kg7 {[%emt 0:00:21]} 25. Qxa7+ {[%emt 0:01:02]} Kg6 {[%emt 0:00:15]} 26. Rc1 {[%emt 0:01:17]} Rf6 {[%emt 0:02:50]} 27. Rc7 {[%emt 0:00:24]} Qf5 {[%emt 0:01:16]} 28. Rg7+ {[%emt 0:00:06]} Kh6 {[%emt 0:00:11]} 29. f3 {[%emt 0:00:56]} Qb1+ {[%emt 0:01:45]} 30. Kf2 {[%emt 0:00:25]} Rxf3+ {[%emt 0:00:39]} 31. Kxf3 {[%emt 0:01:32]} g4+ {[%emt 0:01:23]} 32. Ke3 {[%emt 0:01:53]} Qg1+ {[%emt 0:00:54]} 1-0

[Event "44th Chess Olympiad Women 2022"]
[Site "Chennai"]
[Date "2022.08.02"]
[Round "5.50"]
[White "Cho, Hung-Ling"]
[Black "Silva Rosas, Natalia"]
[Result "0-1"]
[ECO "B43"]
[WhiteElo "1576"]
[BlackElo "1780"]
[Annotator "NA RC COMBH"]
[PlyCount "66"]
[EventDate "2022.07.29"]
[EventType "team-tourn"]
[EventCountry "IND"]
[SourceTitle "playchess.com"]
[Source "ChessBase"]
[SourceQuality "1"]
[WhiteTeam "Taiwan"]
[BlackTeam "Uruguay"]
[WhiteTeamCountry "TPE"]
[BlackTeamCountry "URU"]
[TimeControl "40/5400+30:1800+30"]

1. e4 {[%emt 0:00:05]} c5 {[%emt 0:00:07]} 2. Nf3 {[%emt 0:00:04]} e6 {[%emt 0:00:04]} 3. d4 {[%emt 0:00:04]} cxd4 {[%emt 0:00:04]} 4. Nxd4 {[%emt 0:00:05]} a6 {[%emt 0:00:03]} 5. Bd3 {[%emt 0:00:09]} Qc7 {[%emt 0:00:19]} 6. Nc3 {[%emt 0:00:57]} Bb4 {[%emt 0:00:44]} 7. Bd2 {[%emt 0:02:25]} Bc5 {[%emt 0:03:13]} 8. Nb3 {[%emt 0:01:26]} Ba7 {[%emt 0:00:15]} 9. Qg4 {[%emt 0:05:07]} Kf8 {[%emt 0:00:50]} 10. f4 {[%emt 0:10:03]} d6 {[%emt 0:00:57]} 11. O-O-O {[%emt 0:05:42]} Nf6 {[%emt 0:00:52]} 12. Qf3 {[%emt 0:02:37]} Nc6 {[%emt 0:02:06]} 13. g4 {[%emt 0:04:03]} Nb4 {[%emt 0:02:14]} 14. g5 {[%emt 0:18:54]} Nxd3+ {[%emt 0:00:55]} 15. Qxd3 {[%emt 0:00:58]} Ne8 {[%emt 0:02:52]} 16. f5 {[%emt 0:04:54]} b5 {[%emt 0:05:41]} 17. Rhf1 {[%emt 0:10:17]} Bd7 {[%emt 0:07:39]} 18. Bf4 {[%emt 0:09:54]} Bb8 {[%emt 0:02:28]} 19. f6 {[%emt 0:13:54]} g6 {[%emt 0:10:23]} 20. Qh3 {[%emt 0:02:37]} h5 {[%emt 0:00:13]} 21. gxh6 {[%emt 0:03:31]} Rh7 {[%emt 0:00:07]} 22. Bg5 {[%emt 0:01:22]} b4 {[%emt 0:01:18]} 23. Ne2 {[%emt 0:01:37]} e5 {[%emt 0:00:16]} 24. Qf3 {[%emt 0:00:55]} a5 {[%emt 0:02:00]} 25. h4 {[%emt 0:00:38]} a4 {[%emt 0:00:14]} 26. Nd2 {[%emt 0:00:27]} Qc8 {[%emt 0:01:32]} 27. Rg1 {[%emt 0:00:35]} Ba7 {[%emt 0:00:37]} 28. Rg2 {[%emt 0:00:30]} Be6 {[%emt 0:02:39]} 29. a3 {[%emt 0:00:35]} bxa3 {[%emt 0:00:31]} 30. Qxa3 {[%emt 0:00:04]} Bc5 {[%emt 0:00:19]} 31. Qc3 {[%emt 0:00:47]} a3 {[%emt 0:01:59]} 32. b3 {[%emt 0:00:38]} a2 {[%emt 0:00:18]} 33. Qa1 {[%emt 0:00:26]} Ba3+ {[%emt 0:00:40]} 0-1

[Event "44th Chess Olympiad Women 2022"]
[Site "Chennai"]
[Date "2022.08.02"]
[Round "5.51"]
[White "Zairbek kyzy, Begimai"]
[Black "Nihaya, Ahmed"]
[Result "1-0"]
[ECO "C58"]
[WhiteElo "1949"]
[BlackElo "1233"]
[Annotator "TA"]
[PlyCount "93"]
[EventDate "2022.07.29"]
[EventType "team-tourn"]
[EventCountry "IND"]
[SourceTitle "playchess.com"]
[Source "ChessBase"]
[SourceQuality "1"]
[WhiteTeam "Kyrgyzstan"]
[BlackTeam "Maldives"]
[WhiteTeamCountry "KGZ"]
[BlackTeamCountry "MDV"]
[TimeControl "40/5400+30:1800+30"]

{[%evp 15,93,39,64,74,71,74,156,145,216,227,251,249,334,291,354,308,312,260,251,258,258,252,249,194,184,168,257,253,295,248,294,291,290,245,527,515,560,571,668,483,538,533,526,523,625,592,531,489,555,547,537,520,555,554,616,603,818,774,704,670,976,906,1170,248,235,240,235,216,447,446,389,381,5197,4779,29972,29973,29972,29973,29964,10104]} 1. e4 {[%emt 0:00:02]} e5 {[%emt 0:00:09]} 2. Nf3 {[%emt 0:00:04]} Nc6 {[%emt 0:00:04]} 3. Bc4 {[%emt 0:00:04]} Nf6 {[%emt 0:01:36]} 4. Ng5 {[%emt 0:00:29]} d5 {[%emt 0:00:12]} 5. exd5 {[%emt 0:00:06]} Na5 {[%emt 0:00:12]} 6. Bb5+ {[%emt 0:00:05]} c6 {[%emt 0:00:13]} 7. dxc6 {[%emt 0:00:16]} bxc6 {[%emt 0:00:10]} 8. Bd3 $1 {[%emt 0:00:11][%mdl 4] is now more promising than 8.Be2.} h6 {[%emt 0:01:36]} 9. Ne4 {[%emt 0:00:45] C58: Two Knights: 4 Ng5 d5 5 exd5 Na5 sidelines.} Nxe4 {[%emt 0:02:44]} 10. Bxe4 {[%emt 0:00:54]} Bb7 {[%emt 0:03:07] [#]} ({Black should try} 10... Bd6) 11. d3 $146 {[%emt 0:02:10] aiming for c3. White is clearly better.} ({Predecessor:} 11. Nc3 c5 12. Qe2 Bxe4 13. Qxe4 Qc8 14. Nb5 Nc6 15. f4 f6 16. fxe5 Nxe5 17. Qxa8 Qxa8 {1-0 (27) Patino,D (1834)-Patino Escandon,W (1268) Tolima 2021}) 11... Qb6 {[%emt 0:01:44]} (11... Qc7 $16 12. O-O c5) 12. O-O $18 {[%emt 0:00:27]} Bd6 {[%emt 0:00:16]} 13. Qg4 {[%emt 0:02:23]} g6 {[%emt 0:04:00]} 14. Nc3 {[%emt 0:03:37]} Be7 {[%emt 0:02:45]} 15. Na4 {[%emt 0:10:23]} Qd4 {[%emt 0:04:10]} 16. c4 {[%emt 0:03:52] Hoping for Bd2.} c5 {[%emt 0:08:35]} 17. Be3 {[%emt 0:00:58]} Qd7 {[%emt 0:00:53]} 18. Qxd7+ {[%emt 0:06:03]} Kxd7 {[%emt 0:00:09]} 19. Bxb7 {[%emt 0:00:46]} ({But not} 19. Bxc5 $6 Bxe4 20. dxe4 Nxc4) 19... Nxb7 {[%emt 0:01:21]} 20. f4 {[%emt 0:01:08]} f5 {[%emt 0:01:43]} (20... exf4 $142 21. Bxf4 (21. Rxf4 f5 $16) 21... f5) 21. fxe5 {[%emt 0:01:12]} Ke6 {[%emt 0:00:14]} 22. Rfe1 {[%emt 0:00:30]} h5 {[%emt 0:01:54]} 23. b4 {[%emt 0:02:48]} Rac8 {[%emt 0:00:47]} 24. Rac1 {[%emt 0:01:42]} g5 $2 {[%emt 0:01:43]} (24... Rhd8 25. Nb2 f4) 25. bxc5 {[%emt 0:01:09]} Nxc5 {[%emt 0:00:10]} 26. Nxc5+ {[%emt 0:00:42]} Bxc5 {[%emt 0:00:10]} 27. d4 {[%emt 0:00:26]} Bb4 {[%emt 0:00:29]} 28. d5+ {[%emt 0:00:14]} Kd7 {[%emt 0:00:47]} 29. Red1 {[%emt 0:02:08]} f4 {[%emt 0:01:41]} 30. Bd4 {[%emt 0:03:19] [#] Threatens to win with e6+.} Bc5 {[%emt 0:01:06]} 31. Kf1 {[%emt 0:00:23]} Rhe8 {[%emt 0:00:14]} 32. e6+ {[%emt 0:01:00]} Kd6 {[%emt 0:00:15]} 33. Ke2 {[%emt 0:02:58]} Bxd4 {[%emt 0:00:59]} 34. Rxd4 {[%emt 0:00:06][%mdl 4096] Endgame KRR-KRR} Rc5 {[%emt 0:00:59]} 35. Kd3 {[%emt 0:00:28]} Ra5 {[%emt 0:01:07]} 36. a4 {[%emt 0:01:13]} Rc8 {[%emt 0:03:58]} 37. h4 {[%emt 0:02:07]} g4 {[%emt 0:01:18]} 38. Rxf4 {[%emt 0:00:40]} Rxd5+ {[%emt 0:00:21]} 39. Rd4 $2 {[%emt 0:00:58]} (39. cxd5 Rxc1 40. Rf5) 39... Rxd4+ {[%emt 0:00:46]} 40. Kxd4 {[%emt 0:00:01] Black must now prevent Re1.} Kxe6 {[%emt 0:00:13] KR-KR} 41. Re1+ {[%emt 0:33:48]} Kf5 $2 {[%emt 0:31:05]} (41... Kd6 {keeps fighting.} 42. g3 Rc6) 42. g3 {[%emt 0:02:30] c5 is the strong threat.} Rd8+ {[%emt 0:00:23] [#]} 43. Kc3 $1 {[%emt 0:00:14] And now c5 would win.} a5 $2 {[%emt 0:01:01]} (43... Rc8 44. Re3 Kf6) 44. c5 {[%emt 0:00:21]} Rd5 {[%emt 0:01:57]} 45. Kc4 {[%emt 0:01:12] White mates.} Rd2 {[%emt 0:01:16]} 46. Re3 {[%emt 0:00:40]} Rc2+ {[%emt 0:04:21]} 47. Kb5 {[%emt 0:02:47] White took control after the opening.  Weighted Error Value: White=0.29 (precise) /Black=0.52} 1-0

[Event "44th Chess Olympiad Women 2022"]
[Site "Chennai"]
[Date "2022.08.02"]
[Round "5.51"]
[White "Abaeva, Aiana"]
[Black "Abdul Rasheed, Mariyam Laisa"]
[Result "1-0"]
[ECO "B20"]
[WhiteElo "1595"]
[BlackElo "1145"]
[Annotator "NA RC COMBH"]
[PlyCount "63"]
[EventDate "2022.07.29"]
[EventType "team-tourn"]
[EventCountry "IND"]
[SourceTitle "playchess.com"]
[Source "ChessBase"]
[SourceQuality "1"]
[WhiteTeam "Kyrgyzstan"]
[BlackTeam "Maldives"]
[WhiteTeamCountry "KGZ"]
[BlackTeamCountry "MDV"]
[TimeControl "40/5400+30:1800+30"]

1. e4 {[%emt 0:00:10]} c5 {[%emt 0:00:27]} 2. b3 {[%emt 0:00:15]} d6 {[%emt 0:00:15]} 3. Bb2 {[%emt 0:00:11]} Nf6 {[%emt 0:00:32]} 4. Nc3 {[%emt 0:00:25]} Nc6 {[%emt 0:00:45]} 5. Bc4 {[%emt 0:08:29]} e6 {[%emt 0:02:18]} 6. Nf3 {[%emt 0:06:26]} Be7 {[%emt 0:01:58]} 7. d4 {[%emt 0:00:53]} cxd4 {[%emt 0:00:44]} 8. Nxd4 {[%emt 0:00:13]} Bd7 {[%emt 0:04:57]} 9. Ndb5 {[%emt 0:09:59]} Bc8 {[%emt 0:01:14]} 10. Ba3 {[%emt 0:06:34]} O-O {[%emt 0:12:48]} 11. O-O {[%emt 0:06:30]} Qa5 {[%emt 0:04:20]} 12. Bb2 {[%emt 0:03:29]} Rd8 {[%emt 0:01:26]} 13. Re1 {[%emt 0:05:08]} a6 {[%emt 0:04:33]} 14. Nd4 {[%emt 0:00:33]} Qc7 {[%emt 0:04:10]} 15. Nxc6 {[%emt 0:10:41]} Qxc6 {[%emt 0:04:24]} 16. Qf3 {[%emt 0:03:42]} b5 {[%emt 0:07:52]} 17. Bd3 {[%emt 0:00:30]} Bb7 {[%emt 0:00:23]} 18. Qg3 {[%emt 0:05:08]} Rac8 {[%emt 0:07:04]} 19. Ne2 {[%emt 0:04:32]} Ne8 {[%emt 0:05:18]} 20. Qh3 {[%emt 0:05:33]} h6 {[%emt 0:02:51]} 21. Nd4 {[%emt 0:01:51]} Qd7 {[%emt 0:05:20]} 22. Nf3 {[%emt 0:00:37]} d5 {[%emt 0:02:57]} 23. exd5 {[%emt 0:00:58]} Bxd5 {[%emt 0:04:51]} 24. Ne5 {[%emt 0:02:22]} Qc7 {[%emt 0:05:33]} 25. c4 {[%emt 0:04:22]} bxc4 {[%emt 0:03:10]} 26. bxc4 {[%emt 0:00:05]} Bb7 {[%emt 0:00:32]} 27. Nxf7 {[%emt 0:01:13]} Kxf7 {[%emt 0:04:14]} 28. Qxe6+ {[%emt 0:00:06]} Kf8 {[%emt 0:00:26]} 29. Bh7 {[%emt 0:00:16]} Nf6 {[%emt 0:02:46]} 30. Bxf6 {[%emt 0:00:14]} Ke8 {[%emt 0:00:07]} 31. Bg6+ {[%emt 0:00:07]} Kf8 {[%emt 0:01:12]} 32. Qf7# {[%emt 0:00:08]} 1-0